[Event "*** Titled Tuesday Blitz"]
[Site "Chess.com"]
[Date "2020.11.10"]
[Round "5"]
[White "ural58"]
[Black "sokidze"]
[Result "1-0"]
[WhiteElo "2382"]
[BlackElo "2564"]
[TimeControl "180+1"]
[EndTime "10:58:16 PST"]
[Termination "ural58 won by resignation"]

1. e4 {[%clk 0:02:58.3]} 1... c5 {[%clk 0:03:00]} 2. b3 {[%clk 0:02:56.4]} 2...
Nc6 {[%clk 0:02:57.7]} 3. Bb2 {[%clk 0:02:56.8]} 3... e5 {[%clk 0:02:58]} 4. f4
{[%clk 0:02:56.3]} 4... exf4 {[%clk 0:02:23.8]} 5. Qf3 {[%clk 0:02:54]} 5... Nd4
{[%clk 0:02:09.8]} 6. Bxd4 {[%clk 0:02:53.3]} 6... cxd4 {[%clk 0:02:10.7]} 7. c3
{[%clk 0:02:52.9]} 7... d5 {[%clk 0:01:51.6]} 8. Ne2 {[%clk 0:02:48.6]} 8... Nf6
{[%clk 0:01:14.7]} 9. e5 {[%clk 0:02:30.7]} 9... Ne4 {[%clk 0:01:14.9]} 10. Nxf4
{[%clk 0:02:25.1]} 10... dxc3 {[%clk 0:01:13.8]} 11. Nxc3 {[%clk 0:02:24.5]}
11... Bb4 {[%clk 0:00:52.7]} 12. Bb5+ {[%clk 0:02:22.5]} 12... Bd7 {[%clk
0:00:52.1]} 13. e6 {[%clk 0:02:14.7]} 13... Bxb5 {[%clk 0:00:47.7]} 14. exf7+
{[%clk 0:02:13.3]} 14... Kxf7 {[%clk 0:00:47.4]} 15. Nfxd5+ {[%clk 0:01:46.3]}
15... Nf6 {[%clk 0:00:47.2]} 16. Nxb4 {[%clk 0:01:44.7]} 16... Re8+ {[%clk
0:00:43]} 17. Kd1 {[%clk 0:01:44.2]} 17... Qd7 {[%clk 0:00:30.6]} 18. Nbd5
{[%clk 0:01:23.6]} 18... Bc6 {[%clk 0:00:27.2]} 19. Rf1 {[%clk 0:01:13.4]} 19...
Rad8 {[%clk 0:00:26.8]} 20. Qh5+ {[%clk 0:01:08.3]} 20... Kg8 {[%clk 0:00:23.8]}
21. Rxf6 {[%clk 0:01:08.3]} 21... Bxd5 {[%clk 0:00:22.2]} 22. Qxd5+ {[%clk
0:01:04.3]} 22... Qxd5 {[%clk 0:00:21.5]} 23. Nxd5 {[%clk 0:01:05.2]} 23... Rxd5
{[%clk 0:00:21.3]} 24. Rf2 {[%clk 0:01:02.4]} 24... Rc8 {[%clk 0:00:20.6]} 25.
Rc1 {[%clk 0:01:02.1]} 25... Rcd8 {[%clk 0:00:19.6]} 26. Rc7 {[%clk 0:01:01.2]}
26... Ra5 {[%clk 0:00:14.3]} 27. a4 {[%clk 0:00:59]} 27... b5 {[%clk 0:00:07.8]}
28. Rff7 {[%clk 0:00:57.9]} 28... bxa4 {[%clk 0:00:07.7]} 29. Rxg7+ {[%clk
0:00:58.4]} 29... Kf8 {[%clk 0:00:07.9]} 30. Rcf7+ {[%clk 0:00:55.9]} 30... Ke8
{[%clk 0:00:08.2]} 31. bxa4 {[%clk 0:00:53.8]} 31... Rxa4 {[%clk 0:00:06.6]} 32.
Rxh7 {[%clk 0:00:51.1]} 32... Ra1+ {[%clk 0:00:03.9]} 33. Ke2 {[%clk 0:00:50.5]}
33... Ra2 {[%clk 0:00:04.8]} 34. Rh8+ {[%clk 0:00:49.6]} 34... Kxf7 {[%clk
0:00:04.9]} 35. Rxd8 {[%clk 0:00:50.5]} 1-0

[Event "*** Titled Tuesday Blitz"]
[Site "Chess.com"]
[Date "2020.11.10"]
[Round "5"]
[White "Chess2019Player"]
[Black "petrkostenko"]
[Result "0-1"]
[WhiteElo "2245"]
[BlackElo "2455"]
[TimeControl "180+1"]
[EndTime "10:58:20 PST"]
[Termination "petrkostenko won on time"]

1. Nf3 {[%clk 0:02:52.5]} 1... c5 {[%clk 0:02:37.8]} 2. b3 {[%clk 0:02:44.7]}
2... d6 {[%clk 0:02:35.6]} 3. Bb2 {[%clk 0:02:44.8]} 3... e5 {[%clk 0:02:35.4]}
4. d3 {[%clk 0:02:41.4]} 4... f5 {[%clk 0:02:34.7]} 5. g3 {[%clk 0:02:41.4]}
5... Nf6 {[%clk 0:02:32.3]} 6. Bg2 {[%clk 0:02:41.5]} 6... Nc6 {[%clk
0:02:31.2]} 7. O-O {[%clk 0:02:40.3]} 7... g6 {[%clk 0:02:31.2]} 8. Nbd2 {[%clk
0:02:39.8]} 8... Bg7 {[%clk 0:02:31.1]} 9. e3 {[%clk 0:02:30.9]} 9... O-O {[%clk
0:02:27.3]} 10. d4 {[%clk 0:02:30.8]} 10... cxd4 {[%clk 0:02:20.2]} 11. exd4
{[%clk 0:02:31.7]} 11... e4 {[%clk 0:02:20]} 12. Ng5 {[%clk 0:02:24]} 12... Ng4
{[%clk 0:02:13]} 13. Nh3 {[%clk 0:02:12.6]} 13... e3 {[%clk 0:02:12.5]} 14. Nf3
{[%clk 0:02:02.1]} 14... f4 {[%clk 0:02:01.1]} 15. Nxf4 {[%clk 0:01:34.8]} 15...
exf2+ {[%clk 0:01:59.5]} 16. Kh1 {[%clk 0:01:27.6]} 16... Ne3 {[%clk 0:01:57.6]}
17. Qe2 {[%clk 0:01:19.9]} 17... Nxf1 {[%clk 0:01:55.9]} 18. Rxf1 {[%clk
0:01:20.8]} 18... Bg4 {[%clk 0:01:49.2]} 19. h3 {[%clk 0:00:47.7]} 19... Bf5
{[%clk 0:01:42]} 20. Rxf2 {[%clk 0:00:18.8]} 20... Qa5 {[%clk 0:01:22.3]} 21.
Qc4+ {[%clk 0:00:08.6]} 21... Kh8 {[%clk 0:01:20.8]} 22. Ng5 {[%clk 0:00:08.7]}
22... Nd8 {[%clk 0:00:35.4]} 23. b4 {[%clk 0:00:08.6]} 23... Qa4 {[%clk
0:00:24.6]} 24. g4 {[%clk 0:00:05]} 24... Rc8 {[%clk 0:00:23.3]} 0-1

[Event "*** Titled Tuesday Blitz"]
[Site "Chess.com"]
[Date "2020.11.10"]
[Round "5"]
[White "Chamal_Gedgafov"]
[Black "KyrgyzFighter"]
[Result "0-1"]
[WhiteElo "2152"]
[BlackElo "2356"]
[TimeControl "180+1"]
[EndTime "10:58:21 PST"]
[Termination "KyrgyzFighter won on time"]

1. d4 {[%clk 0:03:00.9]} 1... f5 {[%clk 0:02:48.7]} 2. c4 {[%clk 0:02:59.5]}
2... Nf6 {[%clk 0:02:48.3]} 3. Nc3 {[%clk 0:02:59.8]} 3... g6 {[%clk 0:02:48.6]}
4. Nf3 {[%clk 0:03:00.3]} 4... Bg7 {[%clk 0:02:49.2]} 5. g3 {[%clk 0:03:00.8]}
5... O-O {[%clk 0:02:49.8]} 6. Bg2 {[%clk 0:03:01.3]} 6... d6 {[%clk 0:02:50.7]}
7. O-O {[%clk 0:03:01.4]} 7... Qe8 {[%clk 0:02:51.6]} 8. b3 {[%clk 0:03:01.4]}
8... e5 {[%clk 0:02:50.7]} 9. dxe5 {[%clk 0:03:01.3]} 9... dxe5 {[%clk
0:02:51.6]} 10. e4 {[%clk 0:03:01.7]} 10... f4 {[%clk 0:02:50.9]} 11. Bb2 {[%clk
0:02:57.3]} 11... c6 {[%clk 0:02:49.1]} 12. Qd6 {[%clk 0:02:53.5]} 12... Nh5
{[%clk 0:02:40.3]} 13. Rad1 {[%clk 0:02:46.1]} 13... Bg4 {[%clk 0:02:37.9]} 14.
Na4 {[%clk 0:02:20.7]} 14... Na6 {[%clk 0:02:27]} 15. Rd2 {[%clk 0:01:42]} 15...
fxg3 {[%clk 0:02:20.6]} 16. fxg3 {[%clk 0:01:39.2]} 16... Bxf3 {[%clk
0:02:00.7]} 17. Bxf3 {[%clk 0:01:36.3]} 17... Bh6 {[%clk 0:01:44]} 18. Rd3
{[%clk 0:01:18.6]} 18... Rd8 {[%clk 0:01:33.2]} 19. Qxd8 {[%clk 0:01:16.3]}
19... Qxd8 {[%clk 0:01:32.7]} 20. Rxd8 {[%clk 0:01:16.9]} 20... Rxd8 {[%clk
0:01:33.6]} 21. Bxe5 {[%clk 0:01:13.4]} 21... Rd2 {[%clk 0:01:32.6]} 22. Nc3
{[%clk 0:00:48.4]} 22... Nb4 {[%clk 0:01:32]} 23. Bxh5 {[%clk 0:00:27.7]} 23...
Be3+ {[%clk 0:01:29.9]} 24. Kh1 {[%clk 0:00:25.1]} 24... gxh5 {[%clk 0:01:30]}
25. Bf4 {[%clk 0:00:21.5]} 25... Bxf4 {[%clk 0:01:29.9]} 26. gxf4 {[%clk
0:00:21]} 26... Rc2 {[%clk 0:01:21.2]} 27. Rf3 {[%clk 0:00:19.5]} 27... Nxa2
{[%clk 0:01:12.3]} 28. Na4 {[%clk 0:00:13.9]} 28... b5 {[%clk 0:01:08.9]} 29.
cxb5 {[%clk 0:00:10.4]} 29... cxb5 {[%clk 0:01:09.8]} 30. e5 {[%clk 0:00:06.9]}
30... bxa4 {[%clk 0:01:09.4]} 31. bxa4 {[%clk 0:00:07.1]} 31... Re2 {[%clk
0:01:08.4]} 32. Rb3 {[%clk 0:00:04.8]} 32... Re4 {[%clk 0:01:07.2]} 33. Rb8+
{[%clk 0:00:03.1]} 33... Kg7 {[%clk 0:01:07.5]} 34. Rb7+ {[%clk 0:00:04]} 34...
Kg6 {[%clk 0:01:07.8]} 35. Rxa7 {[%clk 0:00:04.9]} 35... Rxf4 {[%clk 0:01:07.5]}
36. Kg2 {[%clk 0:00:05.8]} 36... Re4 {[%clk 0:01:07.2]} 37. Ra5 {[%clk
0:00:05.1]} 37... Nc3 {[%clk 0:01:07.3]} 38. Kf3 {[%clk 0:00:04.2]} 38... Rxa4
{[%clk 0:01:07]} 39. Rxa4 {[%clk 0:00:03.3]} 39... Nxa4 {[%clk 0:01:07.9]} 40.
Kf4 {[%clk 0:00:03.3]} 40... Nc5 {[%clk 0:01:06.6]} 41. h4 {[%clk 0:00:02.5]}
41... h6 {[%clk 0:01:07.2]} 0-1

[Event "*** Titled Tuesday Blitz"]
[Site "Chess.com"]
[Date "2020.11.10"]
[Round "5"]
[White "BAS8892"]
[Black "vugarrasulov"]
[Result "0-1"]
[WhiteElo "2732"]
[BlackElo "2880"]
[TimeControl "180+1"]
[EndTime "10:58:23 PST"]
[Termination "vugarrasulov won by resignation"]

1. d4 {[%clk 0:03:00.9]} 1... Nf6 {[%clk 0:02:58.8]} 2. Bf4 {[%clk 0:02:58.1]}
2... e6 {[%clk 0:02:58.7]} 3. e3 {[%clk 0:02:57.4]} 3... d5 {[%clk 0:02:58.6]}
4. Nf3 {[%clk 0:02:56.9]} 4... Bd6 {[%clk 0:02:58.2]} 5. Bg3 {[%clk 0:02:56.9]}
5... c5 {[%clk 0:02:58.4]} 6. c3 {[%clk 0:02:56.6]} 6... Qc7 {[%clk 0:02:57.9]}
7. dxc5 {[%clk 0:02:51.9]} 7... Qxc5 {[%clk 0:02:56.4]} 8. Nbd2 {[%clk
0:02:52.1]} 8... O-O {[%clk 0:02:55.7]} 9. Bd3 {[%clk 0:02:51.5]} 9... Nbd7
{[%clk 0:02:46.4]} 10. Qe2 {[%clk 0:02:51]} 10... Bxg3 {[%clk 0:02:37.2]} 11.
hxg3 {[%clk 0:02:50.1]} 11... h6 {[%clk 0:02:37.2]} 12. O-O-O {[%clk 0:02:33]}
12... Rb8 {[%clk 0:02:29.1]} 13. Kb1 {[%clk 0:02:31.8]} 13... b5 {[%clk
0:02:28.3]} 14. e4 {[%clk 0:02:25.6]} 14... b4 {[%clk 0:02:23.5]} 15. c4 {[%clk
0:02:25.3]} 15... dxe4 {[%clk 0:02:16.3]} 16. Nxe4 {[%clk 0:02:24.7]} 16... Nxe4
{[%clk 0:02:16.6]} 17. Bxe4 {[%clk 0:02:18.9]} 17... Nf6 {[%clk 0:02:14.7]} 18.
Bd3 {[%clk 0:02:18.8]} 18... Bb7 {[%clk 0:02:06]} 19. Rhe1 {[%clk 0:02:12.2]}
19... Rfd8 {[%clk 0:02:03.2]} 20. Ne5 {[%clk 0:02:11.6]} 20... Rd6 {[%clk
0:01:57]} 21. f3 {[%clk 0:02:10.3]} 21... Rbd8 {[%clk 0:01:56.8]} 22. g4 {[%clk
0:02:07.3]} 22... a5 {[%clk 0:01:49.9]} 23. Qe3 {[%clk 0:01:55.8]} 23... Qxe3
{[%clk 0:01:31.9]} 24. Rxe3 {[%clk 0:01:55]} 24... a4 {[%clk 0:01:32.6]} 25. b3
{[%clk 0:01:42.6]} 25... axb3 {[%clk 0:01:26.1]} 26. axb3 {[%clk 0:01:42.1]}
26... Kf8 {[%clk 0:01:26.1]} 27. Kc2 {[%clk 0:01:37.1]} 27... Ra6 {[%clk
0:01:24.7]} 28. Kb2 {[%clk 0:01:29.3]} 28... Ra5 {[%clk 0:01:21.5]} 29. Ra1
{[%clk 0:01:26.4]} 29... Rxe5 {[%clk 0:01:19.1]} 30. Rxe5 {[%clk 0:01:24.3]}
30... Rxd3 {[%clk 0:01:19.7]} 31. Re2 {[%clk 0:01:21.3]} 31... Ke7 {[%clk
0:01:12.2]} 32. Ra4 {[%clk 0:01:19.8]} 32... Bc6 {[%clk 0:01:10.7]} 33. Rxb4
{[%clk 0:01:19.5]} 33... Nd7 {[%clk 0:01:11]} 34. Kc2 {[%clk 0:01:06.5]} 34...
Rd4 {[%clk 0:01:10.9]} 35. Kc3 {[%clk 0:01:05.6]} 35... Rd1 {[%clk 0:01:10.9]}
36. Rd2 {[%clk 0:01:03]} 36... Rg1 {[%clk 0:01:03.5]} 37. Kd4 {[%clk 0:00:59]}
37... e5+ {[%clk 0:01:02.8]} 38. Ke3 {[%clk 0:00:55.4]} 38... Rc1 {[%clk
0:01:00.4]} 39. Ra2 {[%clk 0:00:47.8]} 39... Kd6 {[%clk 0:00:57.2]} 40. Kd2
{[%clk 0:00:45.1]} 40... Rg1 {[%clk 0:00:55.8]} 41. Kc3 {[%clk 0:00:45.1]} 41...
g6 {[%clk 0:00:53]} 42. Ra6 {[%clk 0:00:28.8]} 42... Rxg2 {[%clk 0:00:47]} 43.
c5+ {[%clk 0:00:28.8]} 43... Nxc5 {[%clk 0:00:44.9]} 44. Rbb6 {[%clk 0:00:28.3]}
44... Nxa6 {[%clk 0:00:44.8]} 45. Rxa6 {[%clk 0:00:28.3]} 45... Rf2 {[%clk
0:00:45.1]} 0-1

[Event "*** Titled Tuesday Blitz"]
[Site "Chess.com"]
[Date "2020.11.10"]
[Round "5"]
[White "LiamVrolijk"]
[Black "jefferyx"]
[Result "0-1"]
[WhiteElo "2814"]
[BlackElo "2970"]
[TimeControl "180+1"]
[EndTime "10:58:23 PST"]
[Termination "jefferyx won by resignation"]

1. d4 {[%clk 0:02:59.9]} 1... d5 {[%clk 0:02:27.5]} 2. c4 {[%clk 0:02:59.9]}
2... dxc4 {[%clk 0:02:28.4]} 3. Nf3 {[%clk 0:02:58.9]} 3... Nf6 {[%clk
0:02:27.6]} 4. e3 {[%clk 0:02:58.7]} 4... e6 {[%clk 0:02:28.3]} 5. Bxc4 {[%clk
0:02:58.8]} 5... c5 {[%clk 0:02:28.9]} 6. O-O {[%clk 0:02:58.2]} 6... Nc6 {[%clk
0:02:29.4]} 7. Nc3 {[%clk 0:02:54.1]} 7... a6 {[%clk 0:02:29.1]} 8. dxc5 {[%clk
0:02:31.8]} 8... Qxd1 {[%clk 0:02:28.6]} 9. Rxd1 {[%clk 0:02:32.7]} 9... Bxc5
{[%clk 0:02:29.4]} 10. Be2 {[%clk 0:02:30.3]} 10... O-O {[%clk 0:02:28.8]} 11.
Bd2 {[%clk 0:02:21.2]} 11... Bd7 {[%clk 0:02:29.1]} 12. Rac1 {[%clk 0:02:21.5]}
12... Ba7 {[%clk 0:02:29.6]} 13. Be1 {[%clk 0:02:17.1]} 13... Rfd8 {[%clk
0:02:29.4]} 14. Nd2 {[%clk 0:02:16.1]} 14... Ne5 {[%clk 0:02:19.2]} 15. Nde4
{[%clk 0:02:12.2]} 15... Nxe4 {[%clk 0:02:19.1]} 16. Nxe4 {[%clk 0:02:12.2]}
16... Bc6 {[%clk 0:02:19.7]} 17. Nd6 {[%clk 0:01:59.8]} 17... Bd5 {[%clk
0:02:11.7]} 18. Bb4 {[%clk 0:01:54.7]} 18... b5 {[%clk 0:01:42.4]} 19. b3 {[%clk
0:01:18.3]} 19... Nc6 {[%clk 0:01:22.9]} 20. Ba3 {[%clk 0:01:04.1]} 20... b4
{[%clk 0:01:12.9]} 21. e4 {[%clk 0:01:04.4]} 21... bxa3 {[%clk 0:01:09.1]} 22.
exd5 {[%clk 0:01:04.8]} 22... Nd4 {[%clk 0:01:09.4]} 23. Rxd4 {[%clk 0:00:39.9]}
23... Bxd4 {[%clk 0:01:10.3]} 24. Nc4 {[%clk 0:00:34.1]} 24... exd5 {[%clk
0:01:10.2]} 25. Na5 {[%clk 0:00:34.4]} 25... Rdc8 {[%clk 0:01:03.4]} 26. Nc6
{[%clk 0:00:34.2]} 26... Bf6 {[%clk 0:01:03]} 27. Bf3 {[%clk 0:00:33.4]} 27...
Rc7 {[%clk 0:00:52]} 28. Bxd5 {[%clk 0:00:31.5]} 28... Rd8 {[%clk 0:00:52.5]}
29. Bf3 {[%clk 0:00:14.6]} 29... Rd2 {[%clk 0:00:48.3]} 30. Re1 {[%clk
0:00:15.1]} 30... g6 {[%clk 0:00:48.4]} 31. Nb4 {[%clk 0:00:14.9]} 31... Bc3
{[%clk 0:00:46]} 32. Nd5 {[%clk 0:00:13.8]} 32... Rc5 {[%clk 0:00:38.6]} 33.
Nf6+ {[%clk 0:00:08.3]} 33... Bxf6 {[%clk 0:00:38.1]} 0-1

[Event "*** Titled Tuesday Blitz"]
[Site "Chess.com"]
[Date "2020.11.10"]
[Round "5"]
[White "swisspower96"]
[Black "KetiGrant"]
[Result "0-1"]
[WhiteElo "2560"]
[BlackElo "2413"]
[TimeControl "180+1"]
[EndTime "10:58:23 PST"]
[Termination "KetiGrant won by resignation"]

1. d4 {[%clk 0:03:00.9]} 1... Nf6 {[%clk 0:02:58.1]} 2. c4 {[%clk 0:02:58.8]}
2... g6 {[%clk 0:02:58]} 3. Nc3 {[%clk 0:02:54.3]} 3... Bg7 {[%clk 0:02:58.9]}
4. e4 {[%clk 0:02:53.9]} 4... d6 {[%clk 0:02:59.4]} 5. h3 {[%clk 0:02:53.7]}
5... O-O {[%clk 0:02:59.5]} 6. Be3 {[%clk 0:02:52.2]} 6... e5 {[%clk 0:02:58.1]}
7. d5 {[%clk 0:02:51.3]} 7... c6 {[%clk 0:02:54.6]} 8. g4 {[%clk 0:02:40.8]}
8... cxd5 {[%clk 0:02:53]} 9. cxd5 {[%clk 0:02:40.6]} 9... a6 {[%clk 0:02:52.5]}
10. Nge2 {[%clk 0:02:28.8]} 10... b5 {[%clk 0:02:50.6]} 11. a3 {[%clk
0:02:28.9]} 11... Nbd7 {[%clk 0:02:18.9]} 12. Ng3 {[%clk 0:02:27.4]} 12... Nc5
{[%clk 0:02:11.3]} 13. b4 {[%clk 0:02:03.3]} 13... Ncd7 {[%clk 0:02:07.8]} 14.
a4 {[%clk 0:01:51.4]} 14... bxa4 {[%clk 0:02:03]} 15. Nxa4 {[%clk 0:01:52.3]}
15... Rb8 {[%clk 0:02:01.6]} 16. Rb1 {[%clk 0:01:48.1]} 16... Ne8 {[%clk
0:01:52]} 17. h4 {[%clk 0:01:42.6]} 17... Nc7 {[%clk 0:01:37.9]} 18. h5 {[%clk
0:01:34.3]} 18... Nb5 {[%clk 0:01:31]} 19. Bxb5 {[%clk 0:01:07.9]} 19... axb5
{[%clk 0:01:29.2]} 20. Nc3 {[%clk 0:01:05.4]} 20... Nb6 {[%clk 0:01:25.6]} 21.
Qc1 {[%clk 0:01:01.3]} 21... Bxg4 {[%clk 0:01:16.9]} 22. Bh6 {[%clk 0:00:59.7]}
22... Qf6 {[%clk 0:01:14]} 23. Rg1 {[%clk 0:00:34.8]} 23... Rbc8 {[%clk
0:01:09.1]} 24. Bxg7 {[%clk 0:00:29.9]} 24... Kxg7 {[%clk 0:01:01.6]} 25. Rb3
{[%clk 0:00:22.6]} 25... Rc4 {[%clk 0:00:56.2]} 26. Qd2 {[%clk 0:00:11.2]} 26...
Rd4 {[%clk 0:00:52.5]} 27. Qc1 {[%clk 0:00:05.1]} 27... Rc8 {[%clk 0:00:50.8]}
28. Qa1 {[%clk 0:00:03.6]} 28... Na4 {[%clk 0:00:45.6]} 29. f3 {[%clk 0:00:01]}
29... Qxf3 {[%clk 0:00:42.9]} 30. Nce2 {[%clk 0:00:01.3]} 30... Qxb3 {[%clk
0:00:40.4]} 31. Nxd4 {[%clk 0:00:01.8]} 31... Qxb4+ {[%clk 0:00:37.9]} 32. Kf1
{[%clk 0:00:01.2]} 0-1

[Event "*** Titled Tuesday Blitz"]
[Site "Chess.com"]
[Date "2020.11.10"]
[Round "5"]
[White "TigrVShlyape"]
[Black "Korchmar_Vasiliy"]
[Result "1-0"]
[WhiteElo "2860"]
[BlackElo "2615"]
[TimeControl "180+1"]
[EndTime "10:58:24 PST"]
[Termination "TigrVShlyape won by resignation"]

1. d4 {[%clk 0:03:00.9]} 1... Nf6 {[%clk 0:02:59.3]} 2. Nf3 {[%clk 0:02:59.3]}
2... d5 {[%clk 0:02:59.3]} 3. Bf4 {[%clk 0:02:52.9]} 3... c5 {[%clk 0:02:59.4]}
4. e3 {[%clk 0:02:52.7]} 4... Nc6 {[%clk 0:02:59.5]} 5. Nbd2 {[%clk 0:02:50.7]}
5... cxd4 {[%clk 0:02:58.3]} 6. exd4 {[%clk 0:02:50]} 6... Qb6 {[%clk
0:02:58.5]} 7. Nb3 {[%clk 0:02:48.7]} 7... Bf5 {[%clk 0:02:58.4]} 8. Bd3 {[%clk
0:02:37.4]} 8... Bxd3 {[%clk 0:02:56.3]} 9. Qxd3 {[%clk 0:02:37]} 9... e6 {[%clk
0:02:56.8]} 10. O-O {[%clk 0:02:36.1]} 10... Be7 {[%clk 0:02:56.7]} 11. a4
{[%clk 0:02:29.2]} 11... a6 {[%clk 0:02:56.2]} 12. Ne5 {[%clk 0:02:25]} 12...
Rc8 {[%clk 0:02:46.3]} 13. a5 {[%clk 0:02:24]} 13... Qd8 {[%clk 0:02:44.8]} 14.
c3 {[%clk 0:02:21]} 14... O-O {[%clk 0:02:43.2]} 15. Nxc6 {[%clk 0:02:18.6]}
15... Rxc6 {[%clk 0:02:44.1]} 16. Nd2 {[%clk 0:02:16.9]} 16... Bd6 {[%clk
0:02:22]} 17. Bxd6 {[%clk 0:02:15.7]} 17... Qxd6 {[%clk 0:02:22.9]} 18. Rfe1
{[%clk 0:02:11.2]} 18... Rfc8 {[%clk 0:02:14.7]} 19. g3 {[%clk 0:02:07.9]} 19...
h6 {[%clk 0:02:07.5]} 20. Kg2 {[%clk 0:01:53.4]} 20... R8c7 {[%clk 0:01:53.4]}
21. Nf3 {[%clk 0:01:51]} 21... Nd7 {[%clk 0:01:51.8]} 22. h4 {[%clk 0:01:45.7]}
22... b5 {[%clk 0:01:36.3]} 23. axb6 {[%clk 0:01:43.3]} 23... Rxb6 {[%clk
0:01:36.5]} 24. Re2 {[%clk 0:01:39.1]} 24... Qc6 {[%clk 0:01:29.3]} 25. Qe3
{[%clk 0:01:29.6]} 25... Qb7 {[%clk 0:01:24.8]} 26. Ra2 {[%clk 0:01:24]} 26...
Qc6 {[%clk 0:01:17.1]} 27. g4 {[%clk 0:01:11.4]} 27... Rcb7 {[%clk 0:01:02.6]}
28. g5 {[%clk 0:01:06.9]} 28... h5 {[%clk 0:00:56.4]} 29. g6 {[%clk 0:00:43.2]}
29... fxg6 {[%clk 0:00:57.3]} 30. Ng5 {[%clk 0:00:42.9]} 30... Nf8 {[%clk
0:00:52.9]} 31. Qf3 {[%clk 0:00:34.7]} 31... Qc4 {[%clk 0:00:30.7]} 32. Ra5
{[%clk 0:00:32.4]} 32... Rxb2 {[%clk 0:00:10.2]} 33. Rxb2 {[%clk 0:00:31.2]}
33... Rxb2 {[%clk 0:00:11.1]} 34. Qf7+ {[%clk 0:00:31]} 1-0

[Event "*** Titled Tuesday Blitz"]
[Site "Chess.com"]
[Date "2020.11.10"]
[Round "5"]
[White "freshfoodcompany"]
[Black "politeplayer"]
[Result "0-1"]
[WhiteElo "2395"]
[BlackElo "2249"]
[TimeControl "180+1"]
[EndTime "10:58:25 PST"]
[Termination "politeplayer won by checkmate"]

1. d4 {[%clk 0:03:00.9]} 1... Nf6 {[%clk 0:02:59.6]} 2. c4 {[%clk 0:02:58.7]}
2... e6 {[%clk 0:02:59.5]} 3. Nc3 {[%clk 0:02:58.9]} 3... c5 {[%clk 0:02:57.7]}
4. dxc5 {[%clk 0:02:58]} 4... Bxc5 {[%clk 0:02:57.1]} 5. Nf3 {[%clk 0:02:55.8]}
5... d5 {[%clk 0:02:55.8]} 6. cxd5 {[%clk 0:02:52.8]} 6... exd5 {[%clk
0:02:55.5]} 7. e3 {[%clk 0:02:45.6]} 7... O-O {[%clk 0:02:52.6]} 8. Be2 {[%clk
0:02:44.7]} 8... Nc6 {[%clk 0:02:52]} 9. O-O {[%clk 0:02:43.3]} 9... a6 {[%clk
0:02:50.6]} 10. b3 {[%clk 0:02:38.3]} 10... Re8 {[%clk 0:02:46.9]} 11. Bb2
{[%clk 0:02:36.6]} 11... Bg4 {[%clk 0:02:45]} 12. h3 {[%clk 0:02:34.7]} 12...
Bh5 {[%clk 0:02:29.9]} 13. Rc1 {[%clk 0:02:33]} 13... Ba7 {[%clk 0:02:29]} 14.
Nd4 {[%clk 0:02:28.4]} 14... Nxd4 {[%clk 0:02:09.2]} 15. Bxh5 {[%clk 0:02:24.2]}
15... Nf5 {[%clk 0:01:52.3]} 16. Bf3 {[%clk 0:02:17.1]} 16... Rxe3 {[%clk
0:01:06.8]} 17. Nxd5 {[%clk 0:01:54.4]} 17... Nxd5 {[%clk 0:00:58.7]} 18. Qxd5
{[%clk 0:01:51.8]} 18... Qxd5 {[%clk 0:00:49.2]} 19. Bxd5 {[%clk 0:01:51.4]}
19... Re2 {[%clk 0:00:49.5]} 20. Ba3 {[%clk 0:01:36]} 20... Ng3 {[%clk
0:00:45.1]} 21. Rfd1 {[%clk 0:01:25.7]} 21... Rxf2 {[%clk 0:00:33.9]} 22. Kh2
{[%clk 0:01:20.4]} 22... Nf5 {[%clk 0:00:19.7]} 23. Bxb7 {[%clk 0:01:13.6]}
23... Rb8 {[%clk 0:00:17.7]} 24. Rc8+ {[%clk 0:01:04.9]} 24... Rxc8 {[%clk
0:00:17.3]} 25. Bxc8 {[%clk 0:01:05]} 25... Nd4 {[%clk 0:00:14.2]} 26. Bg4
{[%clk 0:00:57.2]} 26... Rxa2 {[%clk 0:00:12.9]} 27. Bd6 {[%clk 0:00:53]} 27...
f5 {[%clk 0:00:11.9]} 28. Bh5 {[%clk 0:00:46.8]} 28... g6 {[%clk 0:00:11.4]} 29.
Be5 {[%clk 0:00:46.7]} 29... Nc6 {[%clk 0:00:11]} 30. Bg3 {[%clk 0:00:39.7]}
30... gxh5 {[%clk 0:00:10.9]} 31. Rd6 {[%clk 0:00:37.8]} 31... Nd4 {[%clk
0:00:10.4]} 32. Rd8+ {[%clk 0:00:37.4]} 32... Kf7 {[%clk 0:00:09.9]} 33. Rd7+
{[%clk 0:00:37.6]} 33... Ke6 {[%clk 0:00:09.8]} 34. Rxa7 {[%clk 0:00:37.7]}
34... Nf3+ {[%clk 0:00:09.6]} 35. Kh1 {[%clk 0:00:33.9]} 35... Ra1+ {[%clk
0:00:09.9]} 36. Be1 {[%clk 0:00:31.8]} 36... Rxe1# {[%clk 0:00:10.3]} 0-1

[Event "*** Titled Tuesday Blitz"]
[Site "Chess.com"]
[Date "2020.11.10"]
[Round "5"]
[White "Mikhail_Golubev"]
[Black "Vasily85"]
[Result "1-0"]
[WhiteElo "2574"]
[BlackElo "2396"]
[TimeControl "180+1"]
[EndTime "10:58:28 PST"]
[Termination "Mikhail_Golubev won by checkmate"]

1. e4 {[%clk 0:02:11]} 1... c5 {[%clk 0:02:59]} 2. Nf3 {[%clk 0:02:10.2]} 2...
e6 {[%clk 0:02:59.4]} 3. d4 {[%clk 0:02:09.6]} 3... cxd4 {[%clk 0:03:00.3]} 4.
Nxd4 {[%clk 0:02:10.1]} 4... Nc6 {[%clk 0:03:00.9]} 5. Nc3 {[%clk 0:02:09.2]}
5... Qc7 {[%clk 0:03:01.3]} 6. Be3 {[%clk 0:02:09.5]} 6... a6 {[%clk 0:03:01.7]}
7. a3 {[%clk 0:02:08.4]} 7... b5 {[%clk 0:02:56.2]} 8. Nxc6 {[%clk 0:02:06.7]}
8... Qxc6 {[%clk 0:02:35.8]} 9. Bd3 {[%clk 0:02:05.6]} 9... Bb7 {[%clk
0:02:33.4]} 10. O-O {[%clk 0:02:03.5]} 10... Nf6 {[%clk 0:02:28.7]} 11. Re1
{[%clk 0:02:01.5]} 11... Bd6 {[%clk 0:01:56.5]} 12. f4 {[%clk 0:01:40.7]} 12...
O-O {[%clk 0:01:30.6]} 13. Kh1 {[%clk 0:01:11.5]} 13... Rac8 {[%clk 0:01:20.8]}
14. Qd2 {[%clk 0:01:05.1]} 14... b4 {[%clk 0:01:02.7]} 15. axb4 {[%clk
0:00:59.5]} 15... Bxb4 {[%clk 0:01:03.6]} 16. Bd4 {[%clk 0:00:59.7]} 16... Kh8
{[%clk 0:00:44.4]} 17. e5 {[%clk 0:00:39.8]} 17... Nd5 {[%clk 0:00:42]} 18. Be4
{[%clk 0:00:40]} 18... Qc4 {[%clk 0:00:33.4]} 19. f5 {[%clk 0:00:33.7]} 19...
Nxc3 {[%clk 0:00:24.8]} 20. Bxb7 {[%clk 0:00:25.6]} 20... Nb5 {[%clk 0:00:18]}
21. c3 {[%clk 0:00:25.5]} 21... Nxd4 {[%clk 0:00:17.8]} 22. Bxc8 {[%clk
0:00:22]} 22... Nb3 {[%clk 0:00:15.7]} 23. Qxd7 {[%clk 0:00:21.1]} 23... Nxa1
{[%clk 0:00:14.9]} 24. cxb4 {[%clk 0:00:20.3]} 24... Nc2 {[%clk 0:00:14.3]} 25.
Rc1 {[%clk 0:00:19.1]} 25... Qxc8 {[%clk 0:00:14.6]} 26. Qd2 {[%clk 0:00:16.2]}
26... exf5 {[%clk 0:00:13.7]} 27. Qxc2 {[%clk 0:00:15.2]} 27... Qe6 {[%clk
0:00:13.4]} 28. Qc5 {[%clk 0:00:14.3]} 28... g6 {[%clk 0:00:11.4]} 29. Qxf8#
{[%clk 0:00:11.3]} 1-0